[Event "European Amateur-ch U2300 2019"]
[Site "Rhodes"]
[Date "2019.04.13"]
[Round "8.2"]
[White "Andreev, Stanislav"]
[Black "Stavropoulos, Konstantinos"]
[Result "1/2-1/2"]
[ECO "E46"]
[WhiteElo "2140"]
[BlackElo "2001"]
[Annotator "NA"]
[PlyCount "192"]
[EventDate "2019.04.06"]
[EventType "swiss"]
[EventCountry "GRE"]
[SourceTitle "playchess.com"]
[Source "ChessBase"]
[SourceQuality "1"]
[TimeControl "40/5400+30:1800+30"]

1. d4 {[%emt 0:00:00]} Nf6 {[%emt 0:00:00]} 2. c4 {[%emt 0:00:00]} e6 {[%emt 0:00:04]} 3. Nc3 {[%emt 0:00:16]} Bb4 {[%emt 0:00:16]} 4. e3 {[%emt 0:00:49]} O-O {[%emt 0:00:20]} 5. Nge2 {[%emt 0:01:30]} c6 {[%emt 0:00:30]} 6. a3 {[%emt 0:00:35]} Ba5 {[%emt 0:00:04]} 7. c5 {[%emt 0:00:10]} d6 {[%emt 0:13:53]} 8. cxd6 {[%emt 0:00:21]} Qxd6 {[%emt 0:00:59]} 9. b4 {[%emt 0:00:08]} Bc7 {[%emt 0:10:33]} 10. g3 {[%emt 0:00:08]} e5 {[%emt 0:01:40]} 11. Bg2 {[%emt 0:00:16]} Nbd7 {[%emt 0:32:34]} 12. O-O {[%emt 0:04:28]} Nb6 {[%emt 0:01:25]} 13. Qc2 {[%emt 0:05:49]} Bd7 {[%emt 0:06:02]} 14. dxe5 {[%emt 0:37:57]} Qxe5 {[%emt 0:00:06]} 15. e4 {[%emt 0:01:16]} Qe7 {[%emt 0:04:41]} 16. Bg5 {[%emt 0:08:00]} Rac8 {[%emt 0:08:47]} 17. Rad1 {[%emt 0:04:00]} h6 {[%emt 0:00:55]} 18. Be3 {[%emt 0:00:44]} Rfd8 {[%emt 0:01:00]} 19. Bc5 {[%emt 0:01:30]} Qe8 {[%emt 0:00:30]} 20. f4 {[%emt 0:02:49]} Be6 {[%emt 0:03:41]} 21. e5 {[%emt 0:02:10]} Rxd1 {[%emt 0:04:11]} 22. Rxd1 {[%emt 0:00:29]} Nfd5 {[%emt 0:00:12]} 23. Ne4 {[%emt 0:03:02]} Bf5 {[%emt 0:01:10]} 24. Qb3 {[%emt 0:02:27]} Rd8 {[%emt 0:01:33]} 25. a4 {[%emt 0:05:03]} Bxe4 {[%emt 0:02:31]} 26. Bxe4 {[%emt 0:00:10]} Nf6 {[%emt 0:00:12]} 27. Bf3 {[%emt 0:05:46]} Rxd1+ {[%emt 0:00:29]} 28. Qxd1 {[%emt 0:00:06]} Qd7 {[%emt 0:00:50]} 29. Nd4 {[%emt 0:01:11]} Nfd5 {[%emt 0:01:14]} 30. a5 {[%emt 0:01:03]} Nc8 {[%emt 0:01:12]} 31. Bg4 {[%emt 0:01:03]} Qe8 {[%emt 0:00:54]} 32. Nb5 {[%emt 0:03:27]} Bb8 {[%emt 0:01:05]} 33. Bf3 {[%emt 0:00:22]} b6 {[%emt 0:00:52]} 34. axb6 {[%emt 0:01:08]} axb6 {[%emt 0:00:18]} 35. Bf2 {[%emt 0:05:30]} Nxb4 {[%emt 0:00:22]} 36. Nd4 {[%emt 0:00:39]} Ne7 {[%emt 0:01:07]} 37. Qa4 {[%emt 0:00:35]} Nd3 {[%emt 0:00:38]} 38. Be3 {[%emt 0:01:56]} Qd8 {[%emt 0:00:45]} 39. Nxc6 {[%emt 0:00:31]} Nxc6 {[%emt 0:00:18]} 40. Qxc6 {[%emt 0:00:00]} Nc5 {[%emt 0:00:00]} 41. Bd5 {[%emt 0:04:02]} Qd7 {[%emt 0:23:04]} 42. Qxb6 {[%emt 0:05:20]} Qxd5 {[%emt 0:00:04]} 43. Qxb8+ {[%emt 0:00:25]} Kh7 {[%emt 0:00:03]} 44. Qd6 {[%emt 0:01:55]} Qxd6 {[%emt 0:00:08]} 45. exd6 {[%emt 0:00:04]} Nd7 {[%emt 0:00:05]} 46. Kg2 {[%emt 0:08:44]} f5 {[%emt 0:05:07]} 47. Bd4 {[%emt 0:00:18]} h5 {[%emt 0:01:24]} 48. Kf3 {[%emt 0:01:00]} Kg6 {[%emt 0:00:35]} 49. Ke3 {[%emt 0:01:23]} Kf7 {[%emt 0:00:13]} 50. Be5 {[%emt 0:01:55]} Ke6 {[%emt 0:01:54]} 51. Kd4 {[%emt 0:00:20]} g5 {[%emt 0:00:40]} 52. Kc4 {[%emt 0:02:03]} g4 {[%emt 0:00:40]} 53. Kd4 {[%emt 0:01:23]} Nb6 {[%emt 0:01:07]} 54. Kc5 {[%emt 0:00:21]} Nd7+ {[%emt 0:00:06]} 55. Kc6 {[%emt 0:00:25]} Nb8+ {[%emt 0:00:10]} 56. Kc7 {[%emt 0:00:51]} Na6+ {[%emt 0:00:22]} 57. Kc8 {[%emt 0:02:36]} Nc5 {[%emt 0:00:13]} 58. Kd8 {[%emt 0:00:52]} Nb7+ {[%emt 0:04:28]} 59. Kc7 {[%emt 0:00:15]} Nc5 {[%emt 0:00:03]} 60. Kc6 {[%emt 0:00:29]} Nd7 {[%emt 0:00:23]} 61. Bd4 {[%emt 0:02:33]} Nb8+ {[%emt 0:00:22]} 62. Kb7 {[%emt 0:00:32]} Nd7 {[%emt 0:00:05]} 63. Kc7 {[%emt 0:00:21]} Nf8 {[%emt 0:00:19]} 64. Bc5 {[%emt 0:00:24]} Nd7 {[%emt 0:00:16]} 65. Ba3 {[%emt 0:00:14]} Nf6 {[%emt 0:00:07]} 66. Kc8 {[%emt 0:00:58]} Nd7 {[%emt 0:00:41]} 67. Kd8 {[%emt 0:00:31]} Nb6 {[%emt 0:00:31]} 68. Ke8 {[%emt 0:00:34]} Nd7 {[%emt 0:00:15]} 69. Bb4 {[%emt 0:00:26]} Nb8 {[%emt 0:00:34]} 70. Kf8 {[%emt 0:00:40]} Nc6 {[%emt 0:01:06]} 71. Bc5 {[%emt 0:00:49]} Nb8 {[%emt 0:00:44]} 72. Kg7 {[%emt 0:00:17]} Nd7 {[%emt 0:00:02]} 73. Ba3 {[%emt 0:00:18]} Nb6 {[%emt 0:00:34]} 74. Kg6 {[%emt 0:01:15]} Nc4 {[%emt 0:00:08]} 75. Bc5 {[%emt 0:01:10]} Nd2 {[%emt 0:00:35]} 76. d7 {[%emt 0:00:28]} Kxd7 {[%emt 0:00:01]} 77. Kxf5 {[%emt 0:00:08]} Nf3 {[%emt 0:00:03]} 78. Kg6 {[%emt 0:00:37]} Nxh2 {[%emt 0:02:03]} 79. Kxh5 {[%emt 0:00:53]} Ke8 {[%emt 0:00:19]} 80. Kg6 {[%emt 0:00:24]} Nf3 {[%emt 0:00:21]} 81. Kg7 {[%emt 0:01:05]} Kd7 {[%emt 0:00:51]} 82. Kf6 {[%emt 0:01:46]} Kc6 {[%emt 0:00:58]} 83. Ba3 {[%emt 0:00:28]} Kd5 {[%emt 0:00:35]} 84. Kf5 {[%emt 0:00:34]} Nh2 {[%emt 0:00:02]} 85. Be7 {[%emt 0:01:00]} Kd4 {[%emt 0:00:12]} 86. Ke6 {[%emt 0:00:21]} Nf3 {[%emt 0:00:37]} 87. f5 {[%emt 0:00:29]} Ke4 {[%emt 0:00:03]} 88. Bf6 {[%emt 0:00:26]} Nh2 {[%emt 0:01:03]} 89. Be5 {[%emt 0:00:42]} Nf3 {[%emt 0:00:06]} 90. Bg7 {[%emt 0:00:18]} Ng5+ {[%emt 0:01:10]} 91. Kf6 {[%emt 0:00:08]} Nf3 {[%emt 0:00:11]} 92. Kg6 {[%emt 0:01:02]} Nh4+ {[%emt 0:00:09]} 93. gxh4 {[%emt 0:00:50]} g3 {[%emt 0:00:04]} 94. f6 {[%emt 0:00:03]} g2 {[%emt 0:00:03]} 95. f7 {[%emt 0:00:06]} g1=Q+ {[%emt 0:00:02]} 96. Kh7 {[%emt 0:00:22]} Qg4 {[%emt 0:00:58]} 1/2-1/2

[Event "European Amateur-ch U2300 2019"]
[Site "Rhodes"]
[Date "2019.04.13"]
[Round "8.3"]
[White "Samaridis, Konstantinos"]
[Black "Van De Perre, Tom"]
[Result "1-0"]
[ECO "B41"]
[WhiteElo "2022"]
[BlackElo "2102"]
[Annotator "NA"]
[PlyCount "137"]
[EventDate "2019.04.06"]
[EventType "swiss"]
[EventCountry "GRE"]
[SourceTitle "playchess.com"]
[Source "ChessBase"]
[SourceQuality "1"]
[TimeControl "40/5400+30:1800+30"]

1. e4 {[%emt 0:00:00]} c5 {[%emt 0:00:00]} 2. Nf3 {[%emt 0:00:00]} e6 {[%emt 0:00:00]} 3. d4 {[%emt 0:00:00]} cxd4 {[%emt 0:00:00]} 4. Nxd4 {[%emt 0:00:00]} a6 {[%emt 0:00:00]} 5. c4 {[%emt 0:00:04]} Nf6 {[%emt 0:00:03]} 6. Nc3 {[%emt 0:00:09]} Bb4 {[%emt 0:00:07]} 7. Bd2 {[%emt 0:03:22]} Nc6 {[%emt 0:19:19]} 8. Nxc6 {[%emt 0:01:41]} dxc6 {[%emt 0:00:06]} 9. e5 {[%emt 0:01:04]} Nd7 {[%emt 0:00:36]} 10. Qg4 {[%emt 0:17:28]} Nxe5 {[%emt 0:01:38]} 11. Qxg7 {[%emt 0:01:34]} Ng6 {[%emt 0:00:08]} 12. Ne4 {[%emt 0:02:27]} Bxd2+ {[%emt 0:06:29]} 13. Nxd2 {[%emt 0:00:09]} Qa5 {[%emt 0:01:35]} 14. O-O-O {[%emt 0:05:20]} Qe5 {[%emt 0:06:10]} 15. Qxe5 {[%emt 0:03:59]} Nxe5 {[%emt 0:00:06]} 16. Ne4 {[%emt 0:05:44]} a5 {[%emt 0:05:41]} 17. c5 {[%emt 0:05:59]} Nd7 {[%emt 0:03:15]} 18. Bc4 {[%emt 0:15:13]} Ke7 {[%emt 0:07:48]} 19. Rhe1 {[%emt 0:02:37]} a4 {[%emt 0:17:12]} 20. Kc2 {[%emt 0:08:04]} b6 {[%emt 0:11:41]} 21. f4 {[%emt 0:10:44]} b5 {[%emt 0:09:13]} 22. Bf1 {[%emt 0:00:50]} f5 {[%emt 0:00:45]} 23. Ng3 {[%emt 0:04:10]} Rf8 {[%emt 0:05:04]} 24. Rd6 {[%emt 0:01:40]} Nxc5 {[%emt 0:00:12]} 25. Rxc6 {[%emt 0:00:22]} Na6 {[%emt 0:00:05]} 26. a3 {[%emt 0:02:15]} Rb8 {[%emt 0:01:20]} 27. Re5 {[%emt 0:02:06]} Rf6 {[%emt 0:03:46]} 28. Bxb5 {[%emt 0:04:15]} Bd7 {[%emt 0:00:20]} 29. Rxa6 {[%emt 0:00:41]} Rxb5 {[%emt 0:00:36]} 30. Rxb5 {[%emt 0:00:53]} Bxb5 {[%emt 0:00:01]} 31. Ra7+ {[%emt 0:00:13]} Bd7 {[%emt 0:00:20]} 32. Ne2 {[%emt 0:01:11]} Rh6 {[%emt 0:01:07]} 33. h3 {[%emt 0:00:07]} Rg6 {[%emt 0:00:09]} 34. g3 {[%emt 0:00:03]} h5 {[%emt 0:00:26]} 35. h4 {[%emt 0:00:26]} Kd6 {[%emt 0:00:32]} 36. Ra5 {[%emt 0:00:40]} Rg8 {[%emt 0:00:36]} 37. Re5 {[%emt 0:00:45]} Bc6 {[%emt 0:00:39]} 38. Re3 {[%emt 0:01:09]} Be4+ {[%emt 0:00:22]} 39. Kc1 {[%emt 0:00:44]} Kc5 {[%emt 0:00:30]} 40. Rc3+ {[%emt 0:00:00]} Kd5 {[%emt 0:00:00]} 41. b4 {[%emt 0:06:42]} axb3 {[%emt 0:01:03]} 42. Rxb3 {[%emt 0:00:09]} Kc4 {[%emt 0:01:37]} 43. Rc3+ {[%emt 0:00:07]} Kd5 {[%emt 0:00:13]} 44. Kd2 {[%emt 0:07:55]} Rb8 {[%emt 0:00:44]} 45. Ke3 {[%emt 0:00:09]} Kd6 {[%emt 0:04:29]} 46. a4 {[%emt 0:02:13]} Rb1 {[%emt 0:03:27]} 47. Ra3 {[%emt 0:04:05]} Rf1 {[%emt 0:01:27]} 48. Kd2 {[%emt 0:05:43]} Kc5 {[%emt 0:01:34]} 49. Re3 {[%emt 0:02:31]} Ra1 {[%emt 0:09:05]} 50. Nc3 {[%emt 0:00:48]} Kd4 {[%emt 0:00:53]} 51. Nb5+ {[%emt 0:02:00]} Kc4 {[%emt 0:00:43]} 52. Nd6+ {[%emt 0:02:30]} Kd4 {[%emt 0:00:24]} 53. Nb5+ {[%emt 0:01:35]} Kc4 {[%emt 0:00:06]} 54. Ra3 {[%emt 0:00:45]} Rxa3 {[%emt 0:04:37]} 55. Nxa3+ {[%emt 0:00:02]} Kb4 {[%emt 0:00:09]} 56. Nb5 {[%emt 0:00:52]} Bc6 {[%emt 0:01:13]} 57. Nc3 {[%emt 0:01:24]} Kc4 {[%emt 0:01:01]} 58. a5 {[%emt 0:00:23]} Bb7 {[%emt 0:03:08]} 59. Ne2 {[%emt 0:00:08]} Ba6 {[%emt 0:01:19]} 60. Ke3 {[%emt 0:00:09]} Kd5 {[%emt 0:02:08]} 61. Nd4 {[%emt 0:00:48]} Bc4 {[%emt 0:00:24]} 62. Nf3 {[%emt 0:00:31]} Bb5 {[%emt 0:01:26]} 63. Ne5 {[%emt 0:00:11]} Kc5 {[%emt 0:00:54]} 64. Nf7 {[%emt 0:01:11]} Kd5 {[%emt 0:00:08]} 65. Nh6 {[%emt 0:00:38]} Kc5 {[%emt 0:01:17]} 66. Ng8 {[%emt 0:00:18]} Be8 {[%emt 0:00:37]} 67. a6 {[%emt 0:00:19]} Kb6 {[%emt 0:00:10]} 68. Kd4 {[%emt 0:00:05]} Kxa6 {[%emt 0:00:27]} 69. Ke5 {[%emt 0:00:05]} 1-0

[Event "European Amateur-ch U2300 2019"]
[Site "Rhodes"]
[Date "2019.04.13"]
[Round "8.4"]
[White "Minko, Dmitry"]
[Black "Zherebtsova, Alexandra"]
[Result "1/2-1/2"]
[ECO "C47"]
[WhiteElo "2169"]
[BlackElo "2203"]
[Annotator "NA"]
[PlyCount "90"]
[EventDate "2019.04.06"]
[EventType "swiss"]
[EventCountry "GRE"]
[SourceTitle "playchess.com"]
[Source "ChessBase"]
[SourceQuality "1"]
[TimeControl "40/5400+30:1800+30"]

1. e4 {[%emt 0:00:00]} e5 {[%emt 0:00:00]} 2. Nf3 {[%emt 0:00:00]} Nc6 {[%emt 0:00:00]} 3. d4 {[%emt 0:00:00]} exd4 {[%emt 0:00:00]} 4. Nxd4 {[%emt 0:00:00]} Nf6 {[%emt 0:00:00]} 5. Nc3 {[%emt 0:00:00]} Bb4 {[%emt 0:00:02]} 6. Nxc6 {[%emt 0:00:05]} bxc6 {[%emt 0:00:10]} 7. Bd3 {[%emt 0:00:07]} d5 {[%emt 0:00:07]} 8. exd5 {[%emt 0:00:09]} cxd5 {[%emt 0:00:05]} 9. O-O {[%emt 0:00:07]} O-O {[%emt 0:00:05]} 10. Bg5 {[%emt 0:00:05]} c6 {[%emt 0:00:11]} 11. Qf3 {[%emt 0:00:09]} Be7 {[%emt 0:00:07]} 12. h3 {[%emt 0:00:07]} h6 {[%emt 0:00:03]} 13. Bf4 {[%emt 0:01:37]} Nh7 {[%emt 0:00:58]} 14. Ne2 $11 {[%emt 0:13:19]} Bf6 {[%emt 0:21:25]} 15. c3 {[%emt 0:05:26]} Ng5 {[%emt 0:11:08]} 16. Qg3 {[%emt 0:00:41]} Ne6 {[%emt 0:20:21]} 17. Bxh6 {[%emt 0:09:13]} Bh4 {[%emt 0:00:51]} 18. Qg4 {[%emt 0:00:39]} Qf6 {[%emt 0:10:54]} 19. Be3 {[%emt 0:03:37]} Nc5 {[%emt 0:20:33]} 20. Bh7+ {[%emt 0:01:47]} Kxh7 {[%emt 0:00:07]} 21. Qh5+ {[%emt 0:00:08]} Kg8 {[%emt 0:00:03]} 22. Bxc5 {[%emt 0:00:06]} Re8 {[%emt 0:03:18]} 23. Ng3 {[%emt 0:08:11]} g6 {[%emt 0:03:42]} 24. Qd1 {[%emt 0:00:38]} a5 {[%emt 0:00:33]} 25. Qa4 {[%emt 0:07:49]} Bd7 {[%emt 0:01:39]} 26. Rae1 {[%emt 0:06:40]} Qg5 {[%emt 0:00:46]} 27. Kh2 {[%emt 0:01:35]} Qh6 {[%emt 0:02:16]} 28. Rxe8+ {[%emt 0:01:29]} Bxe8 {[%emt 0:01:35]} 29. Qg4 {[%emt 0:01:54]} Qg5 {[%emt 0:00:29]} 30. Qa4 {[%emt 0:02:38]} Qh6 {[%emt 0:00:24]} 31. Be3 {[%emt 0:07:12]} Qh8 {[%emt 0:00:12]} 32. Qg4 {[%emt 0:04:35]} Be7 {[%emt 0:00:59]} 33. f4 {[%emt 0:01:25]} a4 {[%emt 0:02:25]} 34. f5 {[%emt 0:05:40]} Qh4 {[%emt 0:00:18]} 35. Qf3 {[%emt 0:01:18]} Rb8 {[%emt 0:00:56]} 36. fxg6 {[%emt 0:11:01]} fxg6 {[%emt 0:00:01]} 37. Rf2 {[%emt 0:03:12]} Bd6 {[%emt 0:00:19]} 38. Bd4 {[%emt 0:01:32]} Qxg3+ {[%emt 0:01:18]} 39. Qxg3 {[%emt 0:00:01]} Bxg3+ {[%emt 0:00:07]} 40. Kxg3 {[%emt 0:00:00]} Bd7 {[%emt 0:00:00]} 41. Kf4 {[%emt 0:06:02]} Rf8+ {[%emt 0:07:30]} 42. Ke5 {[%emt 0:03:51]} Rxf2 43. Bxf2 {[%emt 0:00:04]} Bf5 {[%emt 0:00:23]} 44. c4 {[%emt 0:02:26]} dxc4 {[%emt 0:02:50]} 45. Kd4 {[%emt 0:01:10]} Bb1 {[%emt 0:03:15] Ke4 [%emt 00:00:24]} 1/2-1/2

[Event "European Amateur-ch U2300 2019"]
[Site "Rhodes"]
[Date "2019.04.13"]
[Round "8.5"]
[White "Brouwer, Dennis"]
[Black "Shukan, Alexander"]
[Result "1-0"]
[ECO "D02"]
[WhiteElo "2179"]
[BlackElo "2088"]
[Annotator "NA"]
[PlyCount "57"]
[EventDate "2019.04.06"]
[EventType "swiss"]
[EventCountry "GRE"]
[SourceTitle "playchess.com"]
[Source "ChessBase"]
[SourceQuality "1"]
[TimeControl "40/5400+30:1800+30"]

1. d4 {[%emt 0:00:00]} d5 {[%emt 0:00:00]} 2. Nf3 {[%emt 0:00:00]} Nc6 {[%emt 0:00:00]} 3. g3 {[%emt 0:00:05]} Bg4 {[%emt 0:00:00]} 4. Bg2 {[%emt 0:00:11]} Qd7 {[%emt 0:00:00]} 5. c4 {[%emt 0:00:32]} dxc4 {[%emt 0:01:57]} 6. d5 {[%emt 0:00:27]} Bxf3 {[%emt 0:00:06]} 7. Bxf3 {[%emt 0:00:06]} Ne5 {[%emt 0:00:02]} 8. Bg2 {[%emt 0:00:10]} c6 {[%emt 0:05:46]} 9. Qd4 {[%emt 0:05:54]} f6 {[%emt 0:04:15]} 10. f4 {[%emt 0:15:23]} Ng6 {[%emt 0:10:20]} 11. Qxc4 {[%emt 0:04:17]} cxd5 {[%emt 0:00:39]} 12. Qxd5 {[%emt 0:00:13]} Qxd5 {[%emt 0:07:06]} 13. Bxd5 {[%emt 0:00:08]} Rc8 {[%emt 0:03:07]} 14. Nc3 {[%emt 0:02:27]} b6 {[%emt 0:05:42]} 15. Be6 {[%emt 0:02:13]} Rc6 {[%emt 0:00:19]} 16. f5 {[%emt 0:00:19]} Ne5 {[%emt 0:00:08]} 17. Bf4 {[%emt 0:01:06]} g6 {[%emt 0:03:05]} 18. e4 {[%emt 0:14:26]} Nd3+ {[%emt 0:06:20]} 19. Ke2 {[%emt 0:00:42]} Nxb2 {[%emt 0:05:58]} 20. Rac1 {[%emt 0:05:27]} Bh6 {[%emt 0:03:19]} 21. Na4 {[%emt 0:05:52]} Nxa4 {[%emt 0:05:00]} 22. Rxc6 {[%emt 0:00:08]} Kf8 {[%emt 0:00:02]} 23. Bxg8 {[%emt 0:00:31]} Bxf4 {[%emt 0:00:24]} 24. Bb3 {[%emt 0:00:15]} Kg7 {[%emt 0:02:41]} 25. gxf4 {[%emt 0:00:30]} Nc5 {[%emt 0:00:02]} 26. Rc7 {[%emt 0:00:42]} a5 {[%emt 0:00:34]} 27. Rxe7+ {[%emt 0:01:09]} Kh6 {[%emt 0:00:28]} 28. Rg1 {[%emt 0:00:33]} Kh5 {[%emt 0:00:02]} 29. Bf7 {[%emt 0:00:43]} 1-0

[Event "European Amateur-ch U2300 2019"]
[Site "Rhodes"]
[Date "2019.04.14"]
[Round "9.1"]
[White "Shukan, Alexander"]
[Black "Yungucu, Arda"]
[Result "0-1"]
[ECO "B26"]
[WhiteElo "2088"]
[BlackElo "1959"]
[Annotator "NA"]
[PlyCount "52"]
[EventDate "2019.04.06"]
[EventType "swiss"]
[EventCountry "GRE"]
[SourceTitle "playchess.com"]
[Source "ChessBase"]
[SourceQuality "1"]
[TimeControl "40/5400+30:1800+30"]

1. e4 {[%emt 0:00:00]} c5 {[%emt 0:00:00]} 2. Nc3 {[%emt 0:00:00]} Nc6 {[%emt 0:00:00]} 3. g3 {[%emt 0:00:00]} g6 {[%emt 0:00:12]} 4. d3 {[%emt 0:00:00]} Bg7 {[%emt 0:00:16]} 5. Be3 {[%emt 0:00:00]} d6 {[%emt 0:00:18]} 6. Qd2 {[%emt 0:00:00]} Rb8 {[%emt 0:00:17]} 7. Bg2 {[%emt 0:00:02]} b5 {[%emt 0:00:10]} 8. Nge2 {[%emt 0:00:08]} b4 {[%emt 0:00:31]} 9. Nd1 {[%emt 0:00:04]} Nd4 {[%emt 0:00:15]} 10. h3 {[%emt 0:01:47] B26: Closed Sicilian: 3 g3, lines with early Be3} (10. O-O e6 11. Nc1 Ne7 12. c3 bxc3 13. bxc3 Ndc6 14. Bh6 O-O 15. Bxg7 Kxg7 16. Ne3 a5 17. Ne2 Ba6 18. f4 f5 19. exf5 gxf5 20. g4 d5 21. gxf5 exf5 22. Ng3 Qd7 23. Rfe1 d4 24. Nc4 {½-½ (38) Piorun,K (2634)-Gutenev,A (2456) St Petersburg 2018}) 10... e6 {[%emt 0:01:43]} 11. Nc1 {[%emt 0:00:15]} Ne7 {[%emt 0:01:14]} 12. c3 {[%emt 0:00:06]} bxc3 {[%emt 0:00:20]} 13. bxc3 {[%emt 0:00:03]} Ndc6 {[%emt 0:00:20]} 14. Bh6 {[%emt 0:00:05]} O-O {[%emt 0:00:22]} 15. Bxg7 {[%emt 0:01:04]} Kxg7 {[%emt 0:00:11]} 16. O-O {[%emt 0:00:05]} Ba6 {[%emt 0:00:47]} 17. f4 {[%emt 0:00:11]} f5 $146 {[%emt 0:04:24]} ({Predecessor:} 17... d5) 18. Rf2 {[%emt 0:01:07]} Qa5 {[%emt 0:12:02]} 19. Ne3 {[%emt 0:00:16]} Rb6 {[%emt 0:08:49]} 20. g4 {[%emt 0:01:42]} Rfb8 {[%emt 0:11:56]} 21. gxf5 {[%emt 0:04:29]} Rb2 {[%emt 0:04:38]} 22. Nc2 {[%emt 0:06:09]} exf5 {[%emt 0:03:20]} 23. exf5 {[%emt 0:12:04]} gxf5 $2 {[%emt 0:03:30]} (23... Qa4 $1 $11) 24. Qe1 {[%emt 0:12:34]} Qd8 {[%emt 0:09:58]} 25. c4 {[%emt 0:15:42]} Qf8 {[%emt 0:25:41]} 26. Bxc6 $17 {[%emt 0:07:56]} (26. Kh2 $11) 26... Nxc6 {[%emt 0:03:11]} 0-1

[Event "European Amateur-ch U2300 2019"]
[Site "Rhodes"]
[Date "2019.04.14"]
[Round "9.2"]
[White "Zherebtsova, Alexandra"]
[Black "Brouwer, Dennis"]
[Result "1/2-1/2"]
[ECO "D95"]
[WhiteElo "2203"]
[BlackElo "2179"]
[Annotator "ChessBase"]
[PlyCount "58"]
[EventDate "2019.04.06"]
[EventType "swiss"]
[EventCountry "GRE"]
[SourceTitle "playchess.com"]
[Source "ChessBase"]
[SourceQuality "1"]
[TimeControl "40/5400+30:1800+30"]

1. d4 {[%emt 0:00:15]} Nf6 {[%emt 0:00:00]} 2. c4 {[%emt 0:00:00]} g6 {[%emt 0:00:00]} 3. Nc3 {[%emt 0:00:00]} d5 {[%emt 0:00:04]} 4. e3 {[%emt 0:00:00]} Bg7 {[%emt 0:00:23]} 5. Qb3 {[%emt 0:00:00]} c6 {[%emt 0:03:46]} 6. Nf3 {[%emt 0:00:00]} O-O {[%emt 0:00:54]} 7. Bd2 {[%emt 0:00:14]} Qb6 {[%emt 0:28:42]} 8. Qa3 {[%emt 0:22:12]} Re8 {[%emt 0:00:00]} 9. h3 {[%emt 0:07:49]} e6 {[%emt 0:03:45]} 10. b4 {[%emt 0:33:54]} Nbd7 11. cxd5 {[%emt 0:01:25]} exd5 12. Be2 {[%emt 0:04:31]} Ne4 {[%emt 0:04:31]} 13. Qb3 {[%emt 0:06:08]} a6 {[%emt 0:02:05]} 14. Nxe4 {[%emt 0:00:12]} Rxe4 {[%emt 0:00:53]} 15. O-O {[%emt 0:00:00]} Re8 16. a4 {[%emt 0:02:41]} Nf6 17. Bc3 {[%emt 0:07:59]} Ne4 {[%emt 0:24:40]} 18. Bb2 {[%emt 0:02:12]} Be6 {[%emt 0:02:22]} 19. b5 {[%emt 0:07:13]} axb5 {[%emt 0:00:44]} 20. axb5 {[%emt 0:00:52]} Nd6 {[%emt 0:04:00]} 21. Ba3 {[%emt 0:02:19]} Nc4 {[%emt 0:02:03]} 22. Rfb1 {[%emt 0:06:28]} Bf5 {[%emt 0:10:04]} 23. Bd3 {[%emt 0:00:00]} Bxd3 24. Qxd3 Nxa3 {[%emt 0:01:53]} 25. Rxa3 {[%emt 0:00:00]} c5 {[%emt 0:00:00]} 26. dxc5 {[%emt 0:00:00]} Qxc5 27. Rxa8 {[%emt 0:00:00]} Rxa8 28. Rd1 {[%emt 0:03:54]} Ra5 {[%emt 0:04:09]} 29. Qxd5 {[%emt 0:00:00]} Rxb5 {[%emt 0:00:00]} 1/2-1/2

[Event "European Amateur-ch U2300 2019"]
[Site "Rhodes"]
[Date "2019.04.14"]
[Round "9.3"]
[White "Van De Perre, Tom"]
[Black "Minko, Dmitry"]
[Result "1/2-1/2"]
[ECO "C45"]
[WhiteElo "2102"]
[BlackElo "2169"]
[Annotator "NA"]
[PlyCount "56"]
[EventDate "2019.04.06"]
[EventType "swiss"]
[EventCountry "GRE"]
[SourceTitle "playchess.com"]
[Source "ChessBase"]
[SourceQuality "1"]
[TimeControl "40/5400+30:1800+30"]

1. e4 {[%emt 0:00:00]} e5 {[%emt 0:00:00]} 2. Nf3 {[%emt 0:00:00]} Nc6 {[%emt 0:00:00]} 3. d4 {[%emt 0:00:00]} exd4 {[%emt 0:00:00]} 4. Nxd4 {[%emt 0:00:00]} Bc5 {[%emt 0:00:00]} 5. Nxc6 {[%emt 0:00:11]} Qf6 {[%emt 0:00:01]} 6. Qf3 {[%emt 0:00:58]} Qxf3 {[%emt 0:00:09]} 7. gxf3 {[%emt 0:00:08]} bxc6 {[%emt 0:00:04]} 8. Be3 {[%emt 0:04:23] C45: Scotch Game} Bb6 {[%emt 0:00:14]} 9. Nc3 {[%emt 0:05:22]} Ne7 {[%emt 0:02:06]} 10. O-O-O {[%emt 0:01:33]} d6 {[%emt 0:03:06]} 11. Na4 $146 {[%emt 0:02:40]} ({Predecessor:} 11. h4 O-O 12. h5 Be6 13. Rg1 f5 14. Ne2 fxe4 15. fxe4 Bxe3+ 16. fxe3 {1-0 (53) Zvjaginsev,V (2661)-Harutyunian,T (2523) Minsk 2017}) 11... Bxe3+ {[%emt 0:00:29]} 12. fxe3 {[%emt 0:00:10]} Be6 {[%emt 0:08:18]} 13. Bd3 {[%emt 0:04:15]} O-O {[%emt 0:09:53]} 14. Nc3 {[%emt 0:02:24]} f5 {[%emt 0:05:00]} 15. f4 {[%emt 0:02:28]} Rae8 {[%emt 0:05:20]} 16. Rhg1 {[%emt 0:03:51]} Bc8 {[%emt 0:08:04]} 17. Rde1 {[%emt 0:15:28]} fxe4 {[%emt 0:25:52]} 18. Nxe4 {[%emt 0:00:16]} Bf5 {[%emt 0:11:13]} 19. Ng3 {[%emt 0:14:05]} d5 {[%emt 0:03:59]} 20. Kd2 {[%emt 0:03:46]} Bh3 {[%emt 0:05:12]} 21. b4 {[%emt 0:03:23]} Nc8 {[%emt 0:01:04]} 22. Ne2 {[%emt 0:01:48]} Nd6 {[%emt 0:02:33]} 23. Nd4 {[%emt 0:00:42]} Bd7 {[%emt 0:00:40]} 24. Rg5 $16 {[%emt 0:02:31]} a5 {[%emt 0:04:06]} 25. Reg1 {[%emt 0:03:37]} Rf7 {[%emt 0:01:11]} 26. a3 {[%emt 0:04:38]} axb4 {[%emt 0:00:56]} 27. axb4 {[%emt 0:00:07]} Rb8 {[%emt 0:00:35]} 28. c3 {[%emt 0:00:31]} Ra8 {[%emt 0:00:13]} 1/2-1/2